fUSD/lending_fUSD_20250123
["ID","MTS","AMOUNT","RATE_DAILY","PERIOD"]
[350056949,1737594429372,-510.1980913,0.00019178,2]
[350056950,1737594429392,-514.06100938,0.00019178,2]
[350056951,1737594429412,-500.0,0.00019178,2]
[350056952,1737594429433,-508.1188297,0.00019178,2]
[350056953,1737594429453,-515.48317263,0.00019178,2]
[350056954,1737594429474,-513.38206706,0.00019178,2]
[350056955,1737594429494,-500.0,0.00019178,2]
[350056956,1737594429519,-517.78165706,0.00019178,2]
[350056957,1737594429539,-500.0,0.00019178,2]
[350056958,1737594429560,-500.0,0.00019178,2]
[350056959,1737594429582,-500.0,0.00019178,2]
[350056960,1737594429603,-500.0,0.00019178,2]
[350056961,1737594429624,-512.44539985,0.00019178,2]
[350056962,1737594429648,-500.0,0.00019178,2]
[350056963,1737594429670,-500.0,0.00019178,2]
[350056964,1737594429691,-500.0,0.00019178,2]
[350056965,1737594429712,-500.0,0.00019178,2]
[350056966,1737594429733,-500.0,0.00019178,2]
[350056967,1737594429754,-500.0,0.00019178,2]
[350056968,1737594429778,-500.0,0.00019178,2]
[350056969,1737594429800,-500.0,0.00019178,2]
[350056970,1737594429820,-500.0,0.00019178,2]
[350056971,1737594429842,-500.0,0.00019178,2]
[350056972,1737594429864,-500.0,0.00019178,2]
[350056973,1737594429885,-500.0,0.00019178,2]
[350056974,1737594429905,-500.0,0.00019178,2]
[350056975,1737594429927,-500.0,0.00019178,2]
[350056976,1737594429952,-500.0,0.00019178,2]
[350056977,1737594429973,-500.0,0.00019178,2]
[350056978,1737594429994,-500.0,0.00019178,2]
[350056979,1737594430018,-500.0,0.00019178,2]
[350056980,1737594430040,-500.0,0.00019178,2]
[350056981,1737594430062,-500.0,0.00019178,2]
[350056982,1737594430084,-500.0,0.00019178,2]
[350056983,1737594430104,-500.0,0.00019178,2]
[350056984,1737594430125,-500.0,0.00019178,2]
[350056985,1737594430146,-500.0,0.00019178,2]
[350056986,1737594430168,-500.0,0.00019178,2]
[350056987,1737594430189,-500.0,0.00019178,2]
[350056988,1737594430210,-500.0,0.00019178,2]
[350056989,1737594430231,-500.0,0.00019178,2]
[350056990,1737594430253,-500.0,0.00019178,2]
[350056991,1737594430282,-500.0,0.00019178,2]
[350056992,1737594430304,-500.0,0.00019178,2]
[350056993,1737594430326,-500.0,0.00019178,2]
[350056994,1737594430349,-500.0,0.00019178,2]
[350056995,1737594430370,-406.37179395,0.00019178,2]
[350056996,1737594430391,-500.0,0.00019178,2]
[350056997,1737594430412,-500.0,0.00019178,2]
[350056998,1737594430435,-500.0,0.00019178,2]
[350056999,1737594430456,-500.0,0.00019178,2]
[350057000,1737594430479,-435.66718698,0.00019178,2]
[350057001,1737594438101,-500.0,0.00018548,2]
[350057002,1737594438123,-64.33281302,0.00019178,2]
[350057003,1737594438144,-500.0,0.00019178,2]
[350057004,1737594438165,-500.0,0.00019178,2]
[350057005,1737594438186,-500.0,0.00019178,2]
[350057006,1737594438207,-500.0,0.00019178,2]
[350057007,1737594438228,-500.0,0.00019178,2]
[350057008,1737594438250,-500.0,0.00019178,2]
[350057009,1737594438275,-500.0,0.00019178,2]
[350057010,1737594438297,-500.0,0.00019178,2]
[350057011,1737594438318,-513.10205871,0.00019178,2]
[350057012,1737594438339,-500.0,0.00019178,2]
[350057013,1737594438362,-500.0,0.00019178,2]
[350057014,1737594438384,-500.0,0.00019178,2]
[350057015,1737594438406,-309.17818086,0.00019178,2]
[350057016,1737594439232,-190.82181914,0.00019178,2]
[350057017,1737594439254,-500.0,0.00019178,2]
[350057018,1737594439282,-521.37661701,0.00019178,2]
[350057019,1737594439303,-500.0,0.00019178,2]
[350057020,1737594439324,-500.0,0.00019178,2]
[350057021,1737594439347,-500.0,0.00019178,2]
[350057022,1737594439367,-500.0,0.00019178,2]
[350057023,1737594439388,-500.0,0.00019178,2]
[350057024,1737594439409,-500.0,0.00019178,2]
[350057025,1737594439430,-500.0,0.00019178,2]
[350057026,1737594439451,-487.96969057,0.00019178,2]
[350057027,1737594439472,-503.08020912,0.00019178,2]
[350057028,1737594439493,-500.0,0.00019178,2]
[350057029,1737594439514,-500.0,0.00019178,2]
[350057030,1737594439539,-500.0,0.00019178,2]
[350057031,1737594439560,-500.0,0.00019178,2]
[350057032,1737594439581,-500.0,0.00019178,2]
[350057033,1737594439602,-500.0,0.00019178,2]
[350057034,1737594439623,-500.0,0.00019178,2]
[350057035,1737594439648,-500.0,0.00019178,2]
[350057036,1737594439670,-500.0,0.00019178,2]
[350057037,1737594439691,-507.94832649,0.00019178,2]
[350057038,1737594439713,-500.0,0.00019178,2]
[350057039,1737594439735,-514.50354277,0.00019178,2]
[350057040,1737594439756,-500.0,0.00019178,2]
[350057041,1737594439781,-500.0,0.00019178,2]
[350057042,1737594439802,-507.39468433,0.00019178,2]
[350057043,1737594439823,-500.0,0.00019178,2]
[350057044,1737594439844,-500.0,0.00019178,2]
[350057045,1737594439864,-507.31271327,0.00019178,2]
[350057046,1737594439886,-500.0,0.00019178,2]
[350057047,1737594439906,-500.0,0.00019178,2]
[350057048,1737594439927,-510.69255061,0.00019178,2]
[350057049,1737594439948,-500.0,0.00019178,2]
[350057050,1737594439969,-500.0,0.00019178,2]
[350057051,1737594439990,-500.0,0.00019178,2]
[350057052,1737594440011,-161.99948018,0.00019178,2]
[350057053,1737594440035,-500.0,0.00019178,2]
[350057054,1737594440056,-500.0,0.00019178,2]
[350057055,1737594440077,-500.0,0.00019178,2]
[350057056,1737594440098,-500.0,0.00019178,2]
[350057057,1737594440119,-500.0,0.00019178,2]
[350057058,1737594440140,-500.0,0.00019178,2]
[350057059,1737594440162,-500.0,0.00019178,2]
[350057060,1737594440184,-500.0,0.00019178,2]
[350057061,1737594440204,-500.0,0.00019178,2]
[350057062,1737594440226,-500.0,0.00019178,2]
[350057063,1737594440248,-500.0,0.00019178,2]
[350057064,1737594440275,-500.0,0.00019178,2]
[350057065,1737594440296,-500.0,0.00019178,2]
[350057066,1737594440318,-500.0,0.00019178,2]
[350057067,1737594440338,-500.0,0.00019178,2]
[350057068,1737594440360,-500.0,0.00019178,2]
[350057069,1737594440381,-500.0,0.00019178,2]
[350057070,1737594440401,-500.0,0.00019178,2]
[350057071,1737594440421,-500.0,0.00019178,2]
[350057072,1737594440441,-500.0,0.00019178,2]
[350057073,1737594440463,-500.0,0.00019178,2]
[350057074,1737594440484,-500.0,0.00019178,2]
[350057075,1737594440506,-500.0,0.00019178,2]
[350057076,1737594440530,-500.0,0.00019178,2]
[350057077,1737594440551,-500.0,0.00019178,2]
[350057078,1737594440573,-500.0,0.00019178,2]
[350057079,1737594440594,-500.0,0.00019178,2]
[350057080,1737594440616,-500.0,0.00019178,2]
[350057081,1737594440639,-500.0,0.00019178,2]
[350057082,1737594440659,-500.0,0.00019178,2]
[350057083,1737594440680,-500.0,0.00019178,2]
[350057084,1737594440700,-500.0,0.00019178,2]
[350057085,1737594440721,-500.0,0.00019178,2]
[350057086,1737594440742,-500.0,0.00019178,2]
[350057087,1737594440763,-500.0,0.00019178,2]
[350057088,1737594440788,-500.0,0.00019178,2]
[350057089,1737594440809,-500.0,0.00019178,2]
[350057090,1737594440829,-2500.0,0.00019252,2]
[350057091,1737594440849,-6801.829,0.00019352,2]
[350057092,1737594440869,-24796.0762,0.00019352,2]
[350057093,1737594440890,-633.75283081,0.00019392,2]
[350057094,1737594440910,-189.39,0.00019413,2]
[350057095,1737594440930,-839.26,0.00019442,2]
[350057096,1737594440950,-500.0,0.0001945,2]
[350057097,1737594440970,-500.0,0.0001945,2]
[350057098,1737594440991,-500.0,0.0001945,2]
[350057099,1737594441011,-500.0,0.0001945,2]
[350057100,1737594441034,-500.0,0.0001945,2]
[350057101,1737594441054,-500.0,0.0001945,2]
[350057102,1737594441075,-500.0,0.0001945,2]
[350057103,1737594441095,-873.22,0.0001945,2]
[350057104,1737594441116,-500.0,0.0001945,2]
[350057105,1737594441137,-500.0,0.0001945,2]
[350057106,1737594441159,-1256.01,0.0001945,2]
[350057107,1737594441179,-500.0,0.0001945,2]
[350057108,1737594441199,-500.0,0.0001945,2]
[350057109,1737594441219,-500.0,0.0001945,2]
[350057110,1737594441240,-1800.49,0.0001945,2]
[350057111,1737594441264,-500.0,0.0001945,2]
[350057112,1737594441290,-500.0,0.0001945,2]
[350057113,1737594441312,-682.67,0.0001945,2]
[350057114,1737594441334,-500.0,0.0001945,2]
[350057115,1737594441356,-533.8384437,0.00019451,2]
[350057116,1737594441376,-500.0,0.00019451,2]
[350057117,1737594441396,-500.0,0.00019451,2]
[350057118,1737594441416,-500.0,0.00019451,2]
[350057119,1737594441437,-500.0,0.00019451,2]
[350057120,1737594441459,-500.0,0.00019451,2]
[350057121,1737594441481,-500.0,0.00019451,2]
[350057122,1737594441502,-500.0,0.00019451,2]
[350057123,1737594441524,-222.57916245,0.00019451,2]
[350057124,1737594441545,-500.0,0.00019451,2]
[350057125,1737594441566,-500.0,0.00019451,2]
[350057126,1737594441587,-500.0,0.00019451,2]
[350057127,1737594441608,-500.0,0.00019451,2]
[350057128,1737594441631,-591.31,0.00019451,2]
[350057129,1737594441652,-500.0,0.00019451,2]
[350057130,1737594441672,-500.0,0.00019451,2]
[350057131,1737594441695,-500.0,0.00019451,2]
[350057132,1737594441716,-500.0,0.00019451,2]
[350057133,1737594441738,-500.0,0.00019451,2]
[350057134,1737594441759,-500.0,0.00019451,2]
[350057135,1737594441784,-500.0,0.00019451,2]
[350057136,1737594441806,-500.0,0.00019451,2]
[350057137,1737594441826,-500.0,0.00019451,2]
[350057138,1737594441846,-186.96144575,0.00019451,2]
[350057139,1737594441866,-355.27649795,0.00019451,2]
[350057140,1737594441886,-500.0,0.00019451,2]
[350057141,1737594441907,-508.65346327,0.00019451,2]
[350057142,1737594441929,-500.0,0.00019451,2]
[350057143,1737594441950,-500.0,0.00019451,2]
[350057144,1737594441971,-500.0,0.00019451,2]
[350057145,1737594442153,-156.00387339,0.00019451,2]
[350057146,1737594442176,-500.0,0.00019451,2]
[350057147,1737594442198,-159.501348,0.00019451,2]
[350057148,1737594442219,-402.4657076,0.00019451,2]
[350057149,1737594442240,-500.0,0.00019451,2]
[350057150,1737594442261,-616.25596824,0.00019451,2]
[350057151,1737594442289,-500.0,0.00019451,2]
[350057152,1737594442311,-500.0,0.00019451,2]
[350057153,1737594442332,-500.0,0.00019451,2]
[350057154,1737594442354,-500.0,0.00019451,2]
[350057155,1737594442374,-500.0,0.00019451,2]
[350057156,1737594442397,-500.0,0.00019451,2]
[350057157,1737594442418,-500.0,0.00019451,2]
[350057158,1737594442439,-500.0,0.00019451,2]
[350057159,1737594442461,-500.0,0.00019451,2]
[350057160,1737594442482,-500.0,0.00019451,2]
[350057161,1737594442505,-517.81490035,0.00019451,2]
[350057162,1737594442531,-500.0,0.00019451,2]
[350057163,1737594442552,-757.05,0.00019451,2]
[350057164,1737594442574,-645.46,0.00019451,2]
[350057165,1737594442596,-500.0,0.00019451,2]
[350057166,1737594442618,-500.0,0.00019451,2]
[350057167,1737594442641,-500.0,0.00019451,2]
[350057168,1737594442664,-351.09437313,0.00019451,2]
[350057169,1737594442691,-500.0,0.00019451,2]
[350057170,1737594442717,-500.0,0.00019451,2]
[350057171,1737594442740,-500.0,0.00019451,2]
[350057172,1737594442763,-983.65,0.00019451,2]
[350057173,1737594442785,-500.0,0.00019451,2]
[350057174,1737594442808,-1403.35,0.00019451,2]
[350057175,1737594442830,-1077.24,0.00019451,2]
[350057176,1737594442852,-500.0,0.00019451,2]
[350057177,1737594442872,-384.54804829,0.00019451,2]
[350057178,1737594442895,-229.31,0.00019451,2]
[350057179,1737594442914,-500.0,0.00019451,2]
[350057180,1737594442936,-771.48,0.00019451,2]
[350057181,1737594442956,-500.0,0.00019451,2]
[350057182,1737594442977,-500.0,0.00019451,2]
[350057183,1737594443001,-500.0,0.00019451,2]
[350057184,1737594443025,-500.0,0.00019451,2]
[350057185,1737594443048,-500.0,0.00019451,2]
[350057186,1737594443071,-838.39,0.00019451,2]
[350057187,1737594443092,-500.0,0.00019451,2]
[350057188,1737594443114,-299.51519567,0.00019451,2]
[350057189,1737594443137,-1188.97,0.00019451,2]
[350057190,1737594443158,-500.0,0.00019451,2]
[350057191,1737594443179,-628.22,0.00019451,2]
[350057192,1737594443202,-500.0,0.00019451,2]
[350057193,1737594443225,-500.0,0.00019451,2]
[350057194,1737594443249,-500.0,0.00019451,2]
[350057195,1737594443274,-35.06449749,0.00019451,2]
[350057196,1737594631833,-345.3348,0.00015,2]
[350057197,1737594631995,-204.6652,0.00015,2]
[350057198,1737594632006,-1289.47,0.00016882,2]
[350057199,1737594632016,-600.0,0.00017,2]
[350057200,1737594632026,-8909.21877819,0.00018816,2]
[350057201,1737594632038,-500.0,0.00018816,2]
[350057202,1737594632109,-416.26726848,0.00018816,2]
[350057203,1737594632121,-4907.89267366,0.00018816,2]
[350057204,1737594632133,-9166.62127967,0.00018816,2]
[350057205,1737594632143,-250.0,0.00018901,2]
[350057206,1737594632155,-250.0,0.00019019,2]
[350057207,1737594632164,-4483.7086,0.00019078,2]
[350057208,1737594632173,-222.58,0.00019137,2]
[350057209,1737594632183,-1289.47,0.00019146,2]
[350057210,1737594632194,-159.72,0.00019192,30]
[350057211,1737594632203,-1000.0,0.00019252,2]
[350057212,1737594632212,-8115.2225,0.00019351,2]
[350057213,1737594632222,-4526.46365453,0.00019352,2]
[350057214,1737594632234,-368.81844698,0.00019352,2]
[350057215,1737594637013,-650.0,0.00019,2]
[350057216,1737594637024,-104.71789849,0.00019352,2]
[350057217,1737594637034,-3894.45505621,0.00019352,2]
[350057218,1737594637072,-1080.79234568,0.00019352,2]
[350057219,1737594637083,-1028.79,0.00019352,2]
[350057220,1737594637129,-2525.01500635,0.00019352,2]
[350057221,1737594637140,-1794.88850335,0.00019352,2]
[350057222,1737594637154,-667.67218453,0.00019352,2]
[350057232,1737594637745,-1920.55029064,0.00019352,2]
[350057233,1737594637801,-4115.95861324,0.00019352,2]
[350057234,1737594637812,-500.0,0.0001945,2]
[350057235,1737594637822,-500.0,0.0001945,2]
[350057236,1737594637832,-500.0,0.0001945,2]
[350057237,1737594637842,-834.43,0.0001945,2]
[350057238,1737594637852,-533.78,0.0001945,2]
[350057239,1737594637861,-701.47,0.0001945,2]
[350057240,1737594637872,-1099.03,0.0001945,2]
[350057241,1737594637881,-500.0,0.0001945,2]
[350057242,1737594637891,-1207.66,0.0001945,2]
[350057243,1737594637903,-500.0,0.0001945,2]
[350057244,1737594637912,-584.3,0.0001945,2]
[350057245,1737594637922,-663.61,0.0001945,2]
[350057246,1737594637931,-1123.9,0.0001945,2]
[350057247,1737594637940,-570.62,0.0001945,2]
[350057248,1737594637950,-1008.17,0.0001945,2]
[350057249,1737594637960,-464.93550251,0.00019451,2]
[350057250,1737594637975,-500.0,0.00019451,2]
[350057251,1737594637985,-500.0,0.00019451,2]
[350057252,1737594637994,-500.0,0.00019451,2]
[350057253,1737594638003,-500.0,0.00019451,2]
[350057254,1737594638013,-500.0,0.00019451,2]
[350057255,1737594638023,-500.0,0.00019451,2]
[350057256,1737594638033,-500.0,0.00019451,2]
[350057257,1737594638043,-500.0,0.00019451,2]
[350057258,1737594638052,-500.0,0.00019451,2]
[350057259,1737594638063,-482.64147707,0.00019451,2]
[350057260,1737594638077,-8.46900375,0.00019451,2]
[350057261,1737594638087,-500.0,0.00019451,2]
[350057262,1737594638098,-500.0,0.00019451,2]
[350057263,1737594638108,-446.85377203,0.00019451,2]
[350057264,1737594638121,-53.14622797,0.00019451,2]
[350057265,1737594638131,-500.0,0.00019451,2]
[350057266,1737594638140,-500.0,0.00019451,2]
[350057268,1737594638152,-266.88908536,0.00019451,2]
[350057269,1737594638161,-500.0,0.00019451,2]
[350057270,1737594638171,-500.0,0.00019451,2]
[350057271,1737594638181,-497.04518561,0.00019451,2]
[350057272,1737594638192,-500.0,0.00019451,2]
[350057273,1737594638202,-434.34,0.00019451,2]
[350057275,1737594638211,-500.0,0.00019451,2]
[350057277,1737594638221,-518.63,0.00019451,2]
[350057279,1737594638231,-500.0,0.00019451,2]
[350057281,1737594638240,-698.97,0.00019451,2]
[350057283,1737594638250,-500.0,0.00019451,2]
[350057285,1737594638260,-500.0,0.00019451,2]
[350057287,1737594638270,-357.88,0.00019451,2]
[350057289,1737594638279,-500.0,0.00019451,2]
[350057291,1737594638289,-500.0,0.00019451,2]
[350057293,1737594638299,-500.0,0.00019451,2]
[350057295,1737594638309,-953.79950106,0.00019451,2]
[350057302,1737594638486,-555.65049894,0.00019451,2]
[350057303,1737594638496,-498.4875575,0.00019451,2]
[350057304,1737594638520,-1.5124425,0.00019451,2]
[350057305,1737594638529,-255.79877391,0.00019451,2]
[350057306,1737594638540,-367.47122609,0.00019451,2]
[350057307,1737594638551,-689.26,0.00019451,2]
[350057308,1737594638560,-500.0,0.00019451,2]
[350057309,1737594638570,-500.0,0.00019451,2]
[350057310,1737594638579,-500.0,0.00019451,2]
[350057311,1737594638589,-500.0,0.00019451,2]
[350057312,1737594638598,-500.0,0.00019451,2]
[350057313,1737594638607,-515.78825106,0.00019451,2]
[350057314,1737594638617,-516.23903111,0.00019451,2]
[350057315,1737594638626,-500.0,0.00019451,2]
[350057316,1737594638635,-1069.1,0.00019451,2]
[350057317,1737594638644,-1056.13,0.00019451,2]
[350057318,1737594638655,-500.0,0.00019451,2]
[350057319,1737594638664,-500.0,0.00019451,2]
[350057320,1737594638674,-751.52,0.00019451,2]
[350057321,1737594638683,-563.13,0.00019451,2]
[350057322,1737594638692,-500.0,0.00019451,2]
[350057323,1737594638702,-500.0,0.00019451,2]
[350057324,1737594638712,-2050.79,0.00019451,2]
[350057325,1737594638722,-1163.87,0.00019451,2]
[350057326,1737594638731,-1524.26,0.00019451,2]
[350057327,1737594638740,-500.0,0.00019451,2]
[350057328,1737594638750,-500.0,0.00019451,2]
[350057329,1737594638759,-514.7,0.00019451,2]
[350057330,1737594638768,-500.0,0.00019451,2]
[350057331,1737594638778,-500.0,0.00019451,2]
[350057332,1737594638787,-500.0,0.00019451,2]
[350057333,1737594638796,-500.0,0.00019451,2]
[350057334,1737594638806,-500.0,0.00019451,2]
[350057335,1737594638815,-718.49,0.00019451,2]
[350057336,1737594638824,-500.0,0.00019451,2]
[350057337,1737594638833,-500.0,0.00019451,2]
[350057338,1737594638843,-500.0,0.00019451,2]
[350057339,1737594638852,-801.37,0.00019451,2]
[350057340,1737594638862,-636.22,0.00019451,2]
[350057341,1737594638871,-500.0,0.00019451,2]
[350057342,1737594638880,-500.0,0.00019451,2]
[350057343,1737594638889,-500.0,0.00019451,2]
[350057344,1737594638899,-500.0,0.00019451,2]
[350057345,1737594638911,-597.66,0.00019451,2]
[350057346,1737594638921,-500.0,0.00019451,2]
[350057347,1737594638931,-500.0,0.00019451,2]
[350057348,1737594638940,-500.0,0.00019451,2]
[350057349,1737594638949,-500.0,0.00019451,2]
[350057350,1737594638959,-500.0,0.00019451,2]
[350057351,1737594638969,-500.0,0.00019451,2]
[350057352,1737594638978,-1018.98,0.00019451,2]
[350057353,1737594638987,-500.0,0.00019451,2]
[350057354,1737594638997,-500.0,0.00019451,2]
[350057355,1737594639006,-500.0,0.00019451,2]
[350057356,1737594639016,-500.0,0.00019451,2]
[350057357,1737594639025,-500.0,0.00019451,2]
[350057358,1737594639034,-500.0,0.00019451,2]
[350057359,1737594639044,-500.0,0.00019451,2]
[350057360,1737594639053,-500.0,0.00019451,2]
[350057361,1737594639063,-677.45,0.00019451,2]
[350057362,1737594639072,-500.0,0.00019451,2]
[350057363,1737594639082,-500.0,0.00019451,2]
[350057364,1737594639091,-634.28,0.00019451,2]
[350057365,1737594639100,-500.0,0.00019451,2]
[350057366,1737594639109,-500.0,0.00019451,2]
[350057367,1737594639118,-500.0,0.00019451,2]
[350057368,1737594639127,-1419.48,0.00019451,2]
[350057369,1737594639137,-500.0,0.00019451,2]
[350057370,1737594639146,-2512.85,0.00019451,2]
[350057371,1737594639158,-500.0,0.00019451,2]
[350057372,1737594639167,-500.0,0.00019451,2]
[350057373,1737594639177,-500.0,0.00019451,2]
[350057374,1737594639186,-500.0,0.00019451,2]
[350057375,1737594639196,-500.0,0.00019451,2]
[350057376,1737594639205,-500.0,0.00019451,2]
[350057377,1737594639214,-529.29,0.00019451,2]
[350057378,1737594639224,-500.0,0.00019451,2]
[350057379,1737594639233,-500.0,0.00019451,2]
[350057380,1737594639243,-500.0,0.00019451,2]
[350057381,1737594639252,-500.0,0.00019451,2]
[350057382,1737594639262,-500.0,0.00019451,2]
[350057383,1737594639271,-500.0,0.00019451,2]
[350057384,1737594639280,-500.0,0.00019451,2]
[350057385,1737594639290,-1121.13,0.00019451,2]
[350057386,1737594639299,-500.0,0.00019451,2]
[350057387,1737594639308,-500.0,0.00019451,2]
[350057388,1737594639317,-500.0,0.00019451,2]
[350057389,1737594639327,-500.0,0.00019451,2]
[350057390,1737594639337,-500.0,0.00019451,2]
[350057391,1737594639350,-500.0,0.00019451,2]
[350057392,1737594639359,-500.0,0.00019451,2]
[350057393,1737594639369,-550.03404511,0.00019452,2]
[350057394,1737594639379,-500.0,0.00019452,2]
[350057395,1737594639389,-500.0,0.00019452,2]
[350057396,1737594639398,-500.0,0.00019452,2]
[350057397,1737594639409,-500.0,0.00019452,2]
[350057398,1737594639420,-500.0,0.00019452,2]
[350057399,1737594639431,-500.0,0.00019452,2]
[350057400,1737594639442,-500.0,0.00019452,2]
[350057401,1737594639452,-500.0,0.00019452,2]
[350057402,1737594639462,-550.44,0.00019452,2]
[350057403,1737594639472,-250.17,0.00019452,2]
[350057404,1737594639484,-500.0,0.00019452,2]
[350057405,1737594639494,-254.78,0.00019452,2]
[350057406,1737594639503,-500.0,0.00019452,2]
[350057407,1737594639513,-500.0,0.00019452,2]
[350057408,1737594639523,-500.0,0.00019452,2]
[350057409,1737594639533,-500.0,0.00019452,2]
[350057410,1737594639543,-500.0,0.00019452,2]
[350057411,1737594639553,-500.0,0.00019452,2]
[350057412,1737594639563,-500.0,0.00019452,2]
[350057413,1737594639572,-637.77,0.00019452,2]
[350057414,1737594639581,-500.0,0.00019452,2]
[350057415,1737594639591,-500.0,0.00019452,2]
[350057416,1737594639600,-500.0,0.00019452,2]
[350057417,1737594639610,-500.0,0.00019452,2]
[350057418,1737594639619,-561.19804155,0.00019452,2]
[350057419,1737594639628,-500.0,0.00019452,2]
[350057420,1737594639638,-500.0,0.00019452,2]
[350057421,1737594639647,-500.0,0.00019452,2]
[350057422,1737594639659,-500.0,0.00019452,2]
[350057423,1737594639668,-500.0,0.00019452,2]
[350057424,1737594639677,-500.0,0.00019452,2]
[350057425,1737594639687,-161.11,0.00019452,2]
[350057426,1737594639696,-500.0,0.00019452,2]
[350057427,1737594639705,-543.32,0.00019452,2]
[350057428,1737594639717,-500.0,0.00019452,2]
[350057429,1737594639726,-500.0,0.00019452,2]
[350057430,1737594639735,-500.0,0.00019452,2]
[350057431,1737594639744,-500.0,0.00019452,2]
[350057432,1737594639754,-500.0,0.00019452,2]
[350057433,1737594639763,-485.44940498,0.00019452,2]
[350057434,1737594639780,-14.55059502,0.00019452,2]
[350057435,1737594639790,-500.0,0.00019452,2]
[350057436,1737594639799,-500.0,0.00019452,2]
[350057437,1737594639808,-500.0,0.00019452,2]
[350057438,1737594639817,-153.48,0.00019471,2]
[350057439,1737594639826,-331.96940498,0.0001955,2]
[350057440,1737594639837,-168.03059502,0.0001955,2]
[350057441,1737594639846,-847.38,0.0001955,2]
[350057442,1737594639856,-18.75360498,0.0001955,2]
[350057443,1737594639868,-481.24639502,0.0001955,2]
[350057444,1737594639877,-500.0,0.0001955,2]
[350057445,1737594639887,-858.14,0.0001955,2]
[350057446,1737594639896,-509.96,0.0001955,2]
[350057447,1737594639909,-642.87,0.0001955,2]
[350057448,1737594639918,-500.0,0.0001955,2]
[350057449,1737594639927,-286.78360498,0.0001955,2]
[350057450,1737594639943,-213.21639502,0.0001955,2]
[350057451,1737594639952,-500.0,0.0001955,2]
[350057452,1737594639962,-39.43860498,0.0001955,2]
[350057453,1737594639973,-460.56139502,0.0001955,2]
[350057454,1737594639983,-954.95,0.0001955,2]
[350057455,1737594639992,-887.51,0.0001955,2]
[350057456,1737594640002,-500.0,0.0001955,2]
[350057457,1737594640011,-500.0,0.0001955,2]
[350057458,1737594640021,-500.0,0.0001955,2]
[350057459,1737594640031,-1277.85,0.0001955,2]
[350057460,1737594640040,-500.0,0.0001955,2]
[350057461,1737594640050,-500.0,0.0001955,2]
[350057462,1737594640059,-603.06,0.0001955,2]
[350057463,1737594640069,-500.0,0.0001955,2]
[350057464,1737594640078,-500.0,0.0001955,2]
[350057465,1737594640088,-549.55,0.0001955,2]
[350057466,1737594640097,-1753.68,0.0001955,2]
[350057467,1737594640107,-500.0,0.0001955,2]
[350057468,1737594640116,-665.69,0.0001955,2]
[350057469,1737594640125,-500.0,0.0001955,2]
[350057470,1737594640135,-528.27,0.0001955,2]
[350057471,1737594640144,-552.58,0.0001955,2]
[350057472,1737594640154,-893.59,0.0001955,2]
[350057473,1737594640164,-698.1,0.0001955,2]
[350057474,1737594640174,-250.0,0.00019551,2]
[350057475,1737594640183,-175.13,0.00019551,2]